fUST/lending_fUST_20260409
["ID","MTS","AMOUNT","RATE_DAILY","PERIOD"]
[420126857,1775702894691,5000.0,9.001e-05,2]
[420126859,1775702917294,5000.0,9.001e-05,2]
[420126860,1775702940511,5000.0,9.001e-05,2]
[420126864,1775702962847,3280.24904663,9.001e-05,2]
[420126875,1775703032573,-164.653173,9.614e-05,2]
[420126876,1775703032582,-300.0,0.00010054,2]
[420126877,1775703032592,-132.346827,0.00011058,2]
[420126878,1775703032604,-355.5,0.00011058,2]
[420126879,1775703032615,-712.153173,0.00011058,2]
[420126880,1775703032625,-300.0,0.00011059,2]
[420126881,1775703032635,-300.0,0.00011059,2]
[420126882,1775703032643,-300.0,0.00011059,2]
[420126883,1775703032653,-300.0,0.00011059,2]
[420126884,1775703032662,-204.0,0.00012152,2]
[420126885,1775703032671,-302.0,0.00012152,2]
[420126886,1775703032680,-420.0,0.00012152,2]
[420126887,1775703032689,-286.23665525,0.00012152,2]
[420126888,1775703032715,-133.76334475,0.00012152,2]
[420126889,1775703032724,-1680.0,0.00012164,2]
[420126890,1775703032734,-251.25133453,0.00012362,2]
[420126891,1775703032743,-164.653173,0.00012819,2]
[420126892,1775703032752,-185.0,0.00013353,2]
[420126893,1775703032761,-310.0,0.00013353,2]
[420126894,1775703032771,-1229.0,0.0001338,2]
[420126895,1775703032780,-156.277,0.00013699,2]
[420126896,1775703032789,-1000.0,0.00013699,2]
[420126897,1775703032798,-169.707774,0.0001508,2]
[420126898,1775703032807,-164.653173,0.00016024,2]
[420126899,1775703032817,-180.916855,0.00016785,2]
[420126900,1775703032826,-180.91498709,0.00017715,2]
[420126901,1775703032836,-180.916855,0.00018551,2]
[420126902,1775703032845,-10498.44548487,0.00018612,2]
[420126903,1775703032856,-1768.748,0.00018612,2]
[420126904,1775703032867,-458.55790684,0.00018612,2]
[420127011,1775703038966,-300.0,0.00016438,2]
[420127012,1775703038976,-330.0,0.00017964,2]
[420127013,1775703038985,-374.30694279,0.00018612,2]
[420127014,1775703038994,-164.653173,0.00019229,2]
[420127015,1775703039003,-500.0,0.0001938,5]
[420127016,1775703039012,-349.55952624,0.0001938,2]
[420127017,1775703039265,-159.0,0.000198,2]
[420127018,1775703039285,-9467.92352734,0.0002,2]
[420127019,1775703039294,-2024.82935649,0.00020158,2]
[420127020,1775703039304,-499.02882896,0.00020258,2]
[420127021,1775703039313,-151.0,0.00020296,2]
[420127022,1775703039322,-180.916855,0.00020318,2]
[420127023,1775703039331,-227.269,0.00020334,2]
[420127024,1775703039341,-58843.1568414,0.00020358,2]
[420127025,1775703039350,-3071.9413274,0.00020358,2]
[420127026,1775703039359,-200.0,0.00020358,2]
[420127027,1775703039368,-182.98162,0.00020358,2]
[420127028,1775703039377,-182.98162,0.00020358,2]
[420127029,1775703039387,-182.98162,0.00020358,2]
[420127030,1775703039396,-887.64635,0.00020358,2]
[420127031,1775703039405,-182.98162,0.00020358,2]
[420127032,1775703039415,-887.64635,0.00020358,2]
[420127033,1775703039424,-887.64635,0.00020358,2]
[420127034,1775703039432,-887.64635,0.00020358,2]
[420127035,1775703039442,-159.0,0.000204,3]
[420127036,1775703039451,-150.189,0.00020468,2]
[420127037,1775703039459,-150.164,0.00020468,2]
[420127038,1775703039468,-184.0,0.00020501,2]
[420127039,1775703039477,-357.80487207,0.00020527,60]
[420127040,1775703039486,-192.548137,0.00020547,2]
[420127041,1775703039496,-168.3888056,0.00020598,2]
[420127042,1775703039505,-499.02882892,0.00020648,2]
[420127043,1775703039514,-12738.0,0.00020724,7]
[420127044,1775703039523,-1043.0,0.00020724,7]
[420127045,1775703039532,-160.0,0.00020763,3]
[420127046,1775703039542,-163.63156194,0.00020763,5]
[420127047,1775703039551,-947.0,0.00020785,2]
[420127048,1775703039560,-471.98672146,0.00020785,2]
[420127049,1775703039569,-151.0,0.00020811,2]
[420127050,1775703039579,-420.05,0.00020845,3]
[420127051,1775703039587,-600.0,0.00020855,3]
[420127052,1775703039597,-182.98162,0.00020855,2]
[420127053,1775703039606,-182.98162,0.00020855,2]
[420127054,1775703039615,-182.98162,0.00020855,2]
[420127055,1775703039624,-887.64635,0.00020855,2]
[420127056,1775703039634,-182.98162,0.00020855,2]
[420127057,1775703039643,-887.64635,0.00020855,2]
[420127058,1775703039652,-887.64635,0.00020855,2]
[420127059,1775703039661,-887.64635,0.00020855,2]
[420127060,1775703039670,-160.0,0.00020874,7]
[420127061,1775703039679,-3061.736513,0.00020874,7]
[420127062,1775703039688,-5963.473027,0.00020874,7]
[420127063,1775703039697,-328.0,0.000209,2]
[420127064,1775703039706,-320.0,0.000209,2]
[420127065,1775703039716,-320.0,0.000209,2]
[420127066,1775703039725,-690.0,0.000209,2]
[420127067,1775703039735,-162.0,0.000209,2]
[420127068,1775703039744,-345.92,0.0002093,3]
[420127069,1775703039753,-210.03,0.0002093,3]
[420127070,1775703039762,-630.1,0.0002093,3]
[420127071,1775703039771,-587.203492,0.00020938,2]
[420127072,1775703039780,-587.203492,0.00020938,2]
[420127073,1775703039789,-587.203492,0.00020938,2]
[420127074,1775703039799,-587.203492,0.00020938,2]
[420127075,1775703039808,-151.0,0.00020938,2]
[420127076,1775703039817,-151.0,0.00020938,2]
[420127077,1775703039827,-151.0,0.00020938,2]
[420127078,1775703039836,-278.070174,0.0002094,2]
[420127079,1775703039845,-278.070174,0.0002094,2]
[420127080,1775703039854,-278.070174,0.0002094,2]
[420127081,1775703039864,-278.070174,0.0002094,2]
[420127082,1775703039873,-200.0,0.0002094,2]
[420127083,1775703039882,-587.203492,0.0002094,2]
[420127084,1775703039891,-587.203492,0.0002094,2]
[420127085,1775703039900,-587.203492,0.0002094,2]
[420127086,1775703039910,-587.203492,0.0002094,2]
[420127087,1775703039919,-151.0,0.0002094,2]
[420127088,1775703039929,-151.0,0.0002094,2]
[420127089,1775703039938,-151.0,0.0002094,2]
[420127090,1775703039947,-182.98162,0.0002094,2]
[420127091,1775703039957,-182.98162,0.0002094,2]
[420127092,1775703039966,-182.98162,0.0002094,2]
[420127093,1775703039975,-887.64635,0.0002094,2]
[420127094,1775703039984,-182.98162,0.0002094,2]
[420127095,1775703039994,-887.64635,0.0002094,2]
[420127096,1775703040003,-887.64635,0.0002094,2]
[420127097,1775703040012,-887.64635,0.0002094,2]
[420127098,1775703040021,-160.0,0.00020972,7]
[420127099,1775703040030,-261.231519,0.00020972,7]
[420127100,1775703040039,-362.463038,0.00020972,7]
[420127101,1775703040048,-500.0,0.00020973,2]
[420127102,1775703040056,-151.0,0.00020999,2]
[420127103,1775703040065,-152.321006,0.00020999,2]
[420127104,1775703040074,-156.905674,0.00020999,2]
[420127105,1775703040083,-3000.0,0.00021,2]
[420127106,1775703040092,-1002.286144,0.00021,2]
[420127107,1775703040102,-3000.0,0.0002101,2]
[420127108,1775703040111,-3000.0,0.0002102,2]
[420127109,1775703040120,-1880.81344772,0.0002102,2]
[420127110,1775703040128,-357.80487207,0.00021028,60]
[420127111,1775703040138,-3000.0,0.0002103,2]
[420127112,1775703040147,-151.0,0.0002103,2]
[420127113,1775703040157,-499.02882892,0.00021038,2]
[420127114,1775703040166,-3000.0,0.0002104,2]
[420127115,1775703040175,-3000.0,0.0002105,2]
[420127116,1775703040185,-151.0,0.0002105,2]
[420127117,1775703040194,-151.0,0.0002105,2]
[420127118,1775703040203,-3000.0,0.0002106,2]
[420127119,1775703040214,-3000.0,0.0002107,2]
[420127120,1775703040223,-244.77138862,0.0002107,2]
[420127121,1775703040232,-3000.0,0.0002108,2]
[420127122,1775703040241,-3000.0,0.0002109,2]
[420127123,1775703040250,-182.98162,0.0002109,2]
[420127124,1775703040260,-182.98162,0.0002109,2]
[420127125,1775703040269,-182.98162,0.0002109,2]
[420127126,1775703040278,-887.64635,0.0002109,2]
[420127128,1775703040287,-182.98162,0.0002109,2]
[420127129,1775703040296,-887.64635,0.0002109,2]
[420127130,1775703040306,-887.64635,0.0002109,2]
[420127131,1775703040315,-887.64635,0.0002109,2]
[420127132,1775703040323,-3000.0,0.000211,2]
[420127133,1775703040332,-278.070174,0.000211,2]
[420127134,1775703040343,-278.070174,0.000211,2]
[420127135,1775703040352,-278.070174,0.000211,2]
[420127136,1775703040361,-278.070174,0.000211,2]
[420127137,1775703040371,-587.203492,0.000211,2]
[420127138,1775703040380,-587.203492,0.000211,2]
[420127139,1775703040389,-587.203492,0.000211,2]
[420127140,1775703040398,-587.203492,0.000211,2]
[420127141,1775703040407,-151.0,0.000211,2]
[420127142,1775703040416,-151.0,0.000211,2]
[420127143,1775703040426,-3000.0,0.0002111,2]
[420127144,1775703040435,-151.0,0.0002111,2]
[420127145,1775703040444,-3000.0,0.0002112,2]
[420127146,1775703040453,-500.0,0.00021129,2]
[420127147,1775703040462,-500.0,0.00021129,3]
[420127148,1775703040471,-500.0,0.00021129,4]
[420127149,1775703040480,-3000.0,0.0002113,2]
[420127150,1775703040489,-3000.0,0.0002114,2]
[420127151,1775703040498,-174.61919141,0.00021146,2]
[420127152,1775703040507,-3000.0,0.0002115,2]
[420127153,1775703040517,-152.047969,0.0002115,2]
[420127154,1775703040526,-151.0,0.0002115,2]
[420127155,1775703040535,-151.0,0.0002115,2]
[420127156,1775703040544,-3000.0,0.0002116,2]
[420127157,1775703040553,-4708.103784,0.0002117,2]
[420127158,1775703040562,-2024.82935645,0.00021185,2]
[420127159,1775703040572,-278.070174,0.00021222,2]
[420127160,1775703040581,-278.070174,0.00021222,2]
[420127161,1775703040591,-278.070174,0.00021222,2]
[420127162,1775703040600,-278.070174,0.00021222,2]
[420127163,1775703040610,-151.0,0.0002128,2]
[420127164,1775703040619,-151.0,0.0002128,2]
[420127165,1775703040628,-587.203492,0.00021285,2]
[420127166,1775703040637,-587.203492,0.00021285,2]
[420127167,1775703040646,-587.203492,0.00021285,2]
[420127168,1775703040656,-587.203492,0.00021285,2]
[420127169,1775703040665,-151.0,0.00021285,2]
[420127170,1775703040674,-268.715312,0.00021285,2]
[420127171,1775703040683,-182.98162,0.00021285,2]
[420127172,1775703040692,-182.98162,0.00021285,2]
[420127173,1775703040702,-182.98162,0.00021285,2]
[420127174,1775703040711,-887.64635,0.00021285,2]
[420127176,1775703040720,-182.981628,0.00021285,2]
[420127177,1775703040729,-887.64635,0.00021285,2]
[420127178,1775703040737,-887.64635,0.00021285,2]
[420127179,1775703040747,-887.646349,0.00021285,2]
[420127180,1775703040755,-1759.88772,0.000213,5]
[420127181,1775703040764,-1000.0,0.0002132,5]
[420127182,1775703040773,-151.0,0.00021325,2]
[420127184,1775703040782,-1000.0,0.0002134,5]
[420127186,1775703040791,-151.0,0.0002136,2]
[420127188,1775703040800,-151.0,0.0002136,2]
[420127189,1775703040809,-151.0,0.0002136,2]
[420127190,1775703040818,-431.4851462,0.0002136,5]
[420127191,1775703040831,-568.5148538,0.0002136,5]
[420127192,1775703040840,-1000.0,0.0002138,5]
[420127193,1775703040849,-1000.0,0.000214,5]
[420127194,1775703040858,-220.17773882,0.00021422,60]
[420127195,1775703040867,-499.02882892,0.00021428,2]
[420127196,1775703040876,-128.74265902,0.00021495,2]
[420127198,1775703041577,-318.22373659,0.00019632,2]
[420127223,1775703044110,-44.77626341,0.00019632,2]
[420127224,1775703044120,-163.18092574,0.0002107,2]
[420127225,1775703044129,-210.98138703,0.00021455,2]
[420127234,1775703046953,-163.18092574,0.0002107,2]
[420127235,1775703046963,-188.01861297,0.00021455,2]
[420127236,1775703046972,-12207.0,0.00021495,7]
[420127237,1775703046981,-39.25734098,0.00021495,2]
[420127238,1775703046991,-927.53252199,0.000215,2]
[420127239,1775703047000,-357.80487207,0.00021529,60]
[420127240,1775703047010,-929.29,0.00021529,2]
[420127241,1775703047019,-929.29,0.00021529,2]
[420127242,1775703047029,-929.29,0.00021529,2]
[420127243,1775703047038,-929.29,0.00021529,2]
[420127244,1775703047048,-929.29,0.00021529,2]
[420127245,1775703047057,-929.29,0.00021529,2]
[420127246,1775703047066,-929.29,0.00021529,2]
[420127247,1775703047075,-929.29,0.00021529,2]
[420127248,1775703047085,-929.29,0.00021529,2]
[420127249,1775703047095,-929.29,0.00021529,2]
[420127250,1775703047104,-929.29,0.00021529,2]
[420127251,1775703047113,-929.29,0.00021529,2]
[420127252,1775703047123,-929.29,0.00021529,2]
[420127253,1775703047132,-929.29,0.00021529,2]
[420127254,1775703047141,-929.29,0.00021529,2]
[420127255,1775703047150,-929.29,0.00021529,2]
[420127256,1775703047159,-929.29,0.00021529,2]
[420127257,1775703047168,-929.29,0.00021529,2]
[420127258,1775703047177,-929.29,0.00021529,2]
[420127259,1775703047187,-1503.81,0.00021529,2]
[420127260,1775703047196,-168.0,0.00021676,2]
[420127261,1775703047206,-181.08010149,0.00021694,2]
[420127262,1775703047214,-151.06912764,0.00021718,2]
[420127263,1775703047224,-3026.1459175,0.00021719,2]
[420127264,1775703047233,-500.0,0.00021759,5]
[420127265,1775703047242,-500.0,0.00021778,6]
[420127266,1775703047251,-500.0,0.00021779,7]
[420127267,1775703047261,-500.0,0.00021779,8]
[420127268,1775703047270,-500.0,0.00021779,9]
[420127269,1775703047279,-168.0,0.00021802,2]
[420127270,1775703047289,-341.38383947,0.00021818,3]
[420127271,1775703047298,-499.02882892,0.00021818,2]
[420127272,1775703047308,-800.0,0.00021821,2]
[420127273,1775703047317,-151.0,0.0002184,2]
[420127274,1775703047326,-397.51719692,0.00021841,2]
[420127275,1775703047335,-504.37431958,0.00021858,20]
[420127276,1775703047344,-800.0,0.00021881,2]
[420127277,1775703047353,-328.0,0.000219,2]
[420127278,1775703047362,-320.0,0.000219,2]
[420127279,1775703047371,-320.0,0.000219,2]
[420127280,1775703047380,-690.0,0.000219,2]
[420127281,1775703047390,-162.0,0.000219,2]
[420127282,1775703047399,-151.0,0.000219,2]
[420127283,1775703047408,-151.0,0.000219,2]
[420127284,1775703047417,-4175.095245,0.00021918,7]
[420127285,1775703047426,-301.892949,0.00021918,2]
[420127286,1775703047436,-153.519094,0.00021918,2]
[420127287,1775703047445,-151.0,0.00021918,2]
[420127288,1775703047454,-151.120992,0.00021918,2]
[420127289,1775703047463,-158.538208,0.00021918,2]
[420127290,1775703047472,-151.0,0.00021918,2]
[420127291,1775703047481,-158.538208,0.00021918,2]
[420127292,1775703047490,-151.0,0.00021918,2]
[420127293,1775703047500,-151.0,0.00021918,2]
[420127294,1775703047509,-151.0,0.00021918,2]
[420127295,1775703047518,-151.0,0.00021918,2]
[420127296,1775703047528,-151.0,0.00021918,2]
[420127297,1775703047537,-158.538208,0.00021918,2]
[420127298,1775703047546,-151.0,0.00021918,2]
[420127299,1775703047555,-158.538208,0.00021918,2]
[420127300,1775703047564,-151.0,0.00021918,2]
[420127301,1775703047573,-151.0,0.00021918,2]
[420127302,1775703047583,-151.0,0.00021918,2]
[420127303,1775703047592,-151.0,0.00021918,2]
[420127304,1775703047601,-204.407926,0.00021918,2]
[420127305,1775703047610,-158.538208,0.00021918,2]
[420127306,1775703047620,-151.0,0.00021918,2]
[420127307,1775703047629,-158.538208,0.00021918,2]
[420127308,1775703047638,-158.538208,0.00021918,2]
[420127309,1775703047648,-158.538208,0.00021918,2]
[420127310,1775703047657,-151.0,0.00021918,2]
[420127311,1775703047668,-151.0,0.00021918,2]
[420127312,1775703047677,-151.0,0.00021918,2]
[420127313,1775703047686,-151.0,0.00021918,2]
[420127314,1775703047695,-266.767261,0.00021918,2]
[420127315,1775703047705,-151.0,0.00021918,2]
[420127316,1775703047714,-151.0,0.00021918,2]
[420127317,1775703047723,-151.0,0.00021918,2]
[420127318,1775703047732,-151.456886,0.00021918,2]
[420127319,1775703047741,-205.665722,0.00021918,2]
[420127320,1775703047750,-205.665722,0.00021918,2]
[420127321,1775703047759,-205.665722,0.00021918,2]
[420127322,1775703047768,-205.665722,0.00021918,2]
[420127323,1775703047777,-205.665722,0.00021918,2]
[420127324,1775703047787,-205.665722,0.00021918,2]
[420127325,1775703047796,-205.665722,0.00021918,2]
[420127326,1775703047805,-205.665722,0.00021918,2]
[420127327,1775703047814,-205.665722,0.00021918,2]
[420127328,1775703047824,-205.665722,0.00021918,2]
[420127329,1775703047833,-205.665722,0.00021918,2]
[420127330,1775703047843,-205.665722,0.00021918,2]
[420127331,1775703047852,-186.528278,0.00021918,2]
[420127332,1775703047861,-186.528278,0.00021918,2]
[420127333,1775703047870,-186.528278,0.00021918,2]
[420127334,1775703047880,-186.528278,0.00021918,2]
[420127335,1775703047888,-186.528278,0.00021918,2]
[420127336,1775703047897,-186.528278,0.00021918,2]
[420127337,1775703047906,-186.528278,0.00021918,2]
[420127338,1775703047916,-186.528278,0.00021918,2]
[420127339,1775703047924,-186.528278,0.00021918,2]
[420127340,1775703047934,-186.528278,0.00021918,2]
[420127341,1775703047943,-186.528278,0.00021918,2]
[420127342,1775703047952,-186.528278,0.00021918,2]
[420127343,1775703047961,-186.528278,0.00021918,2]
[420127344,1775703047971,-186.528278,0.00021918,2]
[420127345,1775703047980,-186.528278,0.00021918,2]
[420127346,1775703047988,-186.528278,0.00021918,2]
[420127347,1775703047998,-151.401687,0.00021918,2]
[420127348,1775703048007,-151.0,0.00021918,2]
[420127349,1775703048016,-151.328873,0.00021918,2]
[420127350,1775703048025,-264.937609,0.00021918,2]
[420127351,1775703048034,-264.937609,0.00021918,2]
[420127352,1775703048043,-264.937609,0.00021918,2]
[420127353,1775703048052,-264.937609,0.00021918,2]
[420127354,1775703048061,-151.0,0.00021918,2]
[420127355,1775703048070,-264.937609,0.00021918,2]
[420127356,1775703048079,-151.0,0.00021918,2]
[420127357,1775703048088,-264.937609,0.00021918,2]
[420127358,1775703048097,-151.0,0.00021918,2]
[420127359,1775703048106,-264.937609,0.00021918,2]
[420127360,1775703048116,-151.0,0.00021918,2]
[420127361,1775703048125,-264.937609,0.00021918,2]
[420127362,1775703048135,-151.0,0.00021918,2]
[420127363,1775703048144,-277.293113,0.00021918,2]
[420127364,1775703048360,-264.937609,0.00021918,2]
[420127365,1775703048370,-264.937609,0.00021918,2]
[420127366,1775703048380,-264.937609,0.00021918,2]
[420127367,1775703048389,-264.937609,0.00021918,2]
[420127368,1775703048398,-264.937609,0.00021918,2]
[420127369,1775703048407,-264.937609,0.00021918,2]
[420127370,1775703048416,-264.937609,0.00021918,2]
[420127371,1775703048425,-264.937609,0.00021918,2]
[420127372,1775703048435,-151.0,0.00021918,2]
[420127373,1775703048444,-151.0,0.00021918,2]
[420127374,1775703048453,-151.0,0.00021918,2]
[420127375,1775703048462,-151.0,0.00021918,2]
[420127376,1775703048471,-257.095301,0.00021918,2]
[420127377,1775703048481,-151.0,0.00021918,2]
[420127378,1775703048490,-151.0,0.00021918,2]
[420127379,1775703048500,-151.0,0.00021918,2]
[420127380,1775703048509,-151.0,0.00021918,2]
[420127381,1775703048518,-151.0,0.00021918,2]
[420127382,1775703048527,-151.0,0.00021918,2]
[420127383,1775703048536,-151.0,0.00021918,2]
[420127384,1775703048545,-151.0,0.00021918,2]
[420127385,1775703048554,-176.120105,0.00021918,2]
[420127386,1775703048563,-176.120105,0.00021918,2]
[420127387,1775703048573,-176.120105,0.00021918,2]
[420127388,1775703048582,-176.120105,0.00021918,2]
[420127389,1775703048591,-176.120105,0.00021918,2]
[420127390,1775703048600,-176.120105,0.00021918,2]
[420127391,1775703048610,-310.005789,0.00021918,2]
[420127392,1775703048619,-310.005789,0.00021918,2]
[420127393,1775703048628,-176.120105,0.00021918,2]
[420127394,1775703048637,-310.005789,0.00021918,2]
[420127395,1775703048647,-310.005789,0.00021918,2]
[420127396,1775703048656,-310.005789,0.00021918,2]
[420127397,1775703048664,-310.005789,0.00021918,2]
[420127398,1775703048674,-310.005789,0.00021918,2]
[420127399,1775703048683,-310.005789,0.00021918,2]
[420127400,1775703048692,-310.005789,0.00021918,2]
[420127401,1775703048701,-310.005789,0.00021918,2]
[420127402,1775703048710,-310.005789,0.00021918,2]
[420127403,1775703048720,-310.005789,0.00021918,2]
[420127404,1775703048729,-176.120105,0.00021918,2]
[420127405,1775703048738,-151.0,0.00021918,2]
[420127406,1775703048747,-151.0,0.00021918,2]
[420127407,1775703048756,-151.0,0.00021918,2]
[420127408,1775703048766,-159.997891,0.00021918,2]
[420127409,1775703048776,-151.0,0.00021918,2]
[420127410,1775703048785,-151.0,0.00021918,2]
[420127411,1775703048794,-151.0,0.00021918,2]
[420127412,1775703048803,-151.0,0.00021918,2]
[420127413,1775703048812,-151.0,0.00021918,2]
[420127414,1775703048822,-151.0,0.00021918,2]
[420127415,1775703048831,-207.638607,0.00021918,2]
[420127416,1775703048840,-151.0,0.00021918,2]
[420127417,1775703048848,-151.0,0.00021918,2]
[420127418,1775703048858,-151.0,0.00021918,2]
[420127419,1775703048867,-151.0,0.00021918,2]
[420127420,1775703048876,-151.0,0.00021918,2]
[420127421,1775703048886,-278.021532,0.00021918,2]
[420127422,1775703048895,-151.0,0.00021918,2]
[420127423,1775703048904,-151.0,0.00021918,2]
[420127424,1775703048913,-151.0,0.00021918,2]
[420127425,1775703048923,-151.0,0.00021918,2]
[420127426,1775703048932,-151.0,0.00021918,2]
[420127427,1775703048941,-222.883376,0.00021918,2]
[420127428,1775703048950,-193.162493,0.00021918,2]
[420127429,1775703048960,-193.162493,0.00021918,2]
[420127430,1775703048969,-193.162493,0.00021918,2]
[420127431,1775703048978,-193.162493,0.00021918,2]
[420127432,1775703048987,-193.162493,0.00021918,2]
[420127433,1775703048996,-193.162493,0.00021918,2]
[420127434,1775703049005,-193.162493,0.00021918,2]
[420127435,1775703049014,-193.162493,0.00021918,2]
[420127436,1775703049024,-193.162493,0.00021918,2]
[420127437,1775703049033,-193.162493,0.00021918,2]
[420127438,1775703049042,-193.162493,0.00021918,2]
[420127439,1775703049051,-193.162493,0.00021918,2]
[420127440,1775703049060,-305.268455,0.00021918,2]
[420127441,1775703049069,-305.268455,0.00021918,2]
[420127442,1775703049078,-305.268455,0.00021918,2]
[420127443,1775703049087,-305.268455,0.00021918,2]
[420127444,1775703049096,-305.268455,0.00021918,2]
[420127445,1775703049106,-305.268455,0.00021918,2]
[420127446,1775703049115,-305.268455,0.00021918,2]
[420127447,1775703049124,-305.268455,0.00021918,2]
[420127448,1775703049133,-305.268455,0.00021918,2]
[420127449,1775703049142,-305.268455,0.00021918,2]
[420127450,1775703049151,-305.268455,0.00021918,2]
[420127451,1775703049160,-305.268455,0.00021918,2]
[420127452,1775703049169,-151.0,0.00021918,2]
[420127453,1775703049179,-151.0,0.00021918,2]
[420127454,1775703049188,-151.0,0.00021918,2]
[420127455,1775703049197,-151.0,0.00021918,2]
[420127456,1775703049206,-151.0,0.00021918,2]
[420127457,1775703049215,-153.524329,0.00021918,2]
[420127458,1775703049224,-151.0,0.00021918,2]
[420127459,1775703049233,-207.595569,0.00021918,2]
[420127460,1775703049242,-282.08278,0.00021918,2]
[420127461,1775703049251,-282.08278,0.00021918,2]
[420127462,1775703049260,-282.08278,0.00021918,2]
[420127463,1775703049269,-282.08278,0.00021918,2]
[420127464,1775703049278,-282.08278,0.00021918,2]
[420127465,1775703049288,-282.08278,0.00021918,2]
[420127466,1775703049297,-282.08278,0.00021918,2]
[420127467,1775703049307,-282.08278,0.00021918,2]
[420127468,1775703049316,-282.08278,0.00021918,2]
[420127469,1775703049326,-282.08278,0.00021918,2]
[420127470,1775703049335,-282.08278,0.00021918,2]
[420127471,1775703049356,-282.08278,0.00021918,2]
[420127472,1775703049369,-282.08278,0.00021918,2]
[420127473,1775703049378,-282.08278,0.00021918,2]
[420127474,1775703049387,-282.08278,0.00021918,2]
[420127475,1775703049396,-282.08278,0.00021918,2]
[420127476,1775703049405,-151.0,0.00021918,2]
[420127477,1775703049414,-151.0,0.00021918,2]
[420127478,1775703049424,-151.0,0.00021918,2]
[420127479,1775703049435,-151.0,0.00021918,2]
[420127480,1775703049445,-151.0,0.00021918,2]
[420127481,1775703049459,-151.0,0.00021918,2]
[420127482,1775703049469,-151.0,0.00021918,2]
[420127483,1775703049479,-151.0,0.00021918,2]
[420127484,1775703049488,-233.271158,0.00021918,2]
[420127485,1775703049497,-151.0,0.00021918,2]
[420127486,1775703049506,-151.0,0.00021918,2]
[420127487,1775703049515,-151.0,0.00021918,2]
[420127488,1775703049525,-151.0,0.00021918,2]
[420127489,1775703049535,-159.52047,0.00021918,2]
[420127490,1775703049544,-151.0,0.00021918,2]
[420127491,1775703049553,-151.0,0.00021918,2]
[420127492,1775703049563,-151.0,0.00021918,2]
[420127493,1775703049572,-151.0,0.00021918,2]
[420127494,1775703049581,-151.0,0.00021918,2]
[420127495,1775703049590,-151.0,0.00021918,2]
[420127496,1775703049599,-151.0,0.00021918,2]
[420127497,1775703049608,-151.0,0.00021918,2]
[420127498,1775703049617,-151.0,0.00021918,2]
[420127499,1775703049627,-156.452187,0.00021918,2]
[420127500,1775703049636,-151.0,0.00021918,2]
[420127501,1775703049644,-240.406612,0.00021918,2]
[420127502,1775703049653,-156.452187,0.00021918,2]
[420127503,1775703049662,-250.671948,0.00021918,2]
[420127504,1775703049672,-240.406612,0.00021918,2]
[420127505,1775703049680,-156.452187,0.00021918,2]
[420127506,1775703049690,-240.406612,0.00021918,2]
[420127507,1775703049699,-156.452187,0.00021918,2]
[420127508,1775703049708,-240.406612,0.00021918,2]
[420127509,1775703049717,-156.452187,0.00021918,2]
[420127510,1775703049727,-240.406612,0.00021918,2]
[420127511,1775703049735,-156.452187,0.00021918,2]
[420127512,1775703049744,-240.406612,0.00021918,2]
[420127513,1775703049754,-156.452187,0.00021918,2]
[420127514,1775703049763,-240.406612,0.00021918,2]